fUSD/lending_fUSD_20240115
["ID","MTS","AMOUNT","RATE_DAILY","PERIOD"]
[311691606,1705336257231,-500.0,0.00032876,2]
[311691607,1705336257241,-1158.4,0.00032876,2]
[311691608,1705336257250,-837.09,0.00032876,2]
[311691609,1705336257261,-716.69,0.00032876,2]
[311691610,1705336257271,-876.57,0.00032876,2]
[311691611,1705336257280,-922.44,0.00032876,2]
[311691612,1705336257290,-500.0,0.00032876,2]
[311691613,1705336257300,-500.0,0.00032876,2]
[311691614,1705336257309,-500.0,0.00032876,2]
[311691615,1705336257319,-983.32,0.00032876,2]
[311691616,1705336257328,-500.0,0.00032876,2]
[311691617,1705336257338,-502.4765286,0.00032876,2]
[311691618,1705336257348,-500.0,0.00032876,2]
[311691619,1705336257357,-500.0,0.00032876,2]
[311691620,1705336257367,-1861.7,0.00032876,2]
[311691621,1705336257377,-500.0,0.00032876,2]
[311691622,1705336257387,-500.0,0.00032876,2]
[311691623,1705336257397,-514.76,0.00032876,2]
[311691624,1705336257407,-500.0,0.00032876,2]
[311691625,1705336257417,-500.0,0.00032876,2]
[311691626,1705336257426,-500.0,0.00032876,2]
[311691627,1705336257437,-500.0,0.00032876,2]
[311691628,1705336257447,-500.0,0.00032876,2]
[311691629,1705336257456,-500.0,0.00032876,2]
[311691630,1705336257465,-500.0,0.00032876,2]
[311691631,1705336257475,-500.0,0.00032876,2]
[311691632,1705336257485,-500.0,0.00032876,2]
[311691633,1705336257495,-500.0,0.00032876,2]
[311691634,1705336257504,-500.0,0.00032876,2]
[311691635,1705336257515,-500.0,0.00032876,2]
[311691636,1705336257525,-500.0,0.00032876,2]
[311691637,1705336257534,-780.7,0.00032876,2]
[311691638,1705336257544,-500.0,0.00032876,2]
[311691639,1705336257554,-504.87384054,0.00032876,2]
[311691640,1705336257564,-500.0,0.00032876,2]
[311691641,1705336257573,-500.0,0.00032876,2]
[311691642,1705336257583,-500.0,0.00032876,2]
[311691643,1705336257592,-500.0,0.00032876,2]
[311691644,1705336257603,-500.0,0.00032876,2]
[311691645,1705336257613,-500.0,0.00032876,2]
[311691646,1705336257623,-1611.92,0.00032876,2]
[311691647,1705336257633,-500.0,0.00032876,2]
[311691648,1705336257642,-500.0,0.00032876,2]
[311691649,1705336257652,-500.0,0.00032876,2]
[311691650,1705336257662,-500.0,0.00032876,2]
[311691651,1705336257672,-500.0,0.00032876,2]
[311691652,1705336257684,-500.0,0.00032876,2]
[311691653,1705336257694,-774.09,0.00032876,2]
[311691654,1705336257707,-1232.6,0.00032876,2]
[311691655,1705336257717,-500.0,0.00032876,2]
[311691656,1705336257727,-555.74,0.00032876,2]
[311691657,1705336257737,-500.0,0.00032876,2]
[311691658,1705336257747,-500.0,0.00032876,2]
[311691659,1705336257757,-500.0,0.00032876,2]
[311691660,1705336257767,-500.0,0.00032876,2]
[311691661,1705336257777,-2000.0,0.00032876,30]
[311691662,1705336257786,-500.0,0.00032876,2]
[311691663,1705336257796,-500.25874459,0.00032876,2]
[311691664,1705336257805,-1365.03,0.00032876,2]
[311691665,1705336257815,-500.0,0.00032876,2]
[311691666,1705336257824,-617.89,0.00032876,2]
[311691667,1705336257834,-713.75,0.00032876,2]
[311691668,1705336257844,-1008.25267093,0.00032876,7]
[311691669,1705336257853,-1000.0,0.00032876,2]
[311691670,1705336257862,-500.0,0.00032876,2]
[311691671,1705336257872,-500.0,0.00032876,2]
[311691672,1705336257881,-1118.08,0.00032876,2]
[311691673,1705336257891,-500.0,0.00032876,2]
[311691674,1705336257901,-796.24,0.00032876,2]
[311691675,1705336257911,-500.0,0.00032876,2]
[311691676,1705336257920,-831.79,0.00032876,2]
[311691677,1705336257930,-504.77400077,0.00032876,2]
[311691678,1705336257939,-500.0,0.00032876,2]
[311691679,1705336257948,-935.58,0.00032876,2]
[311691680,1705336257958,-1099.38,0.00032876,2]
[311691681,1705336257967,-500.0,0.00032876,2]
[311691682,1705336257977,-740.57,0.00032876,2]
[311691683,1705336257986,-505.34810892,0.00032876,2]
[311691684,1705336257996,-500.0,0.00032876,2]
[311691685,1705336258007,-500.0,0.00032876,2]
[311691686,1705336258017,-502.67757329,0.00032876,2]
[311691687,1705336258026,-612.56,0.00032876,2]
[311691688,1705336258036,-500.0,0.00032876,2]
[311691689,1705336258046,-500.0,0.00032876,2]
[311691690,1705336258055,-500.0,0.00032876,2]
[311691691,1705336258064,-500.0,0.00032876,2]
[311691692,1705336258073,-564.23547535,0.00032876,2]
[311691693,1705336258083,-500.0,0.00032876,2]
[311691694,1705336258093,-752.06,0.00032876,2]
[311691695,1705336258103,-500.0,0.00032876,2]
[311691696,1705336258112,-500.0,0.00032876,10]
[311691697,1705336258121,-509.15679097,0.00032876,2]
[311691698,1705336258130,-500.0,0.00032876,2]
[311691699,1705336258140,-958.02,0.00032876,2]
[311691700,1705336258149,-500.0,0.00032876,2]
[311691701,1705336258158,-500.0,0.00032876,2]
[311691702,1705336258168,-500.0,0.00032876,2]
[311691703,1705336258177,-800.97,0.00032876,2]
[311691704,1705336258186,-500.0,0.00032876,2]
[311691705,1705336258196,-500.0,0.00032876,2]
[311691706,1705336258477,-611.79,0.00032876,2]
[311691707,1705336258489,-500.0,0.00032876,2]
[311691708,1705336258499,-500.0,0.00032876,2]
[311691709,1705336258508,-500.0,0.00032876,2]
[311691710,1705336258518,-291.83831449,0.00032876,2]
[311691711,1705336258527,-790.54,0.00032876,2]
[311691712,1705336258536,-500.0,0.00032876,2]
[311691713,1705336258546,-500.0,0.00032876,2]
[311691714,1705336258556,-500.0,0.00032876,2]
[311691715,1705336258566,-500.0,0.00032876,2]
[311691716,1705336258575,-1647.76,0.00032876,2]
[311691717,1705336258585,-1000.0,0.00032876,7]
[311691718,1705336258594,-502.65793872,0.00032876,2]
[311691719,1705336258604,-505.97455126,0.00032876,2]
[311691720,1705336258613,-1120.25,0.00032876,2]
[311691721,1705336258622,-500.0,0.00032876,2]
[311691722,1705336258631,-1258.83,0.00032876,2]
[311691723,1705336258641,-500.0,0.00032876,2]
[311691724,1705336258650,-501.87491122,0.00032876,2]
[311691725,1705336258660,-500.0,0.00032876,2]
[311691726,1705336258669,-1366.16,0.00032876,2]
[311691727,1705336258678,-500.0,0.00032876,2]
[311691728,1705336258688,-500.0,0.00032876,2]
[311691729,1705336258699,-516.02248025,0.00032876,2]
[311691730,1705336258708,-500.0,0.00032876,2]
[311691731,1705336258718,-698.17,0.00032876,2]
[311691732,1705336258727,-686.63,0.00032876,2]
[311691733,1705336258737,-500.0,0.00032876,2]
[311691734,1705336258747,-635.78,0.00032876,2]
[311691735,1705336258759,-500.0,0.00032876,2]
[311691736,1705336258768,-500.0,0.00032876,2]
[311691737,1705336258779,-500.0,0.00032876,2]
[311691738,1705336258789,-500.0,0.00032876,2]
[311691739,1705336258799,-500.0,0.00032876,2]
[311691740,1705336258809,-500.0,0.00032876,2]
[311691741,1705336258819,-1682.47,0.00032876,2]
[311691742,1705336258829,-1031.42,0.00032876,2]
[311691743,1705336258838,-500.0,0.00032876,2]
[311691744,1705336258847,-596.29,0.00032876,2]
[311691745,1705336258857,-521.51369674,0.00032876,2]
[311691746,1705336258866,-500.0,0.00032876,2]
[311691747,1705336258876,-508.13000159,0.00032876,2]
[311691748,1705336258885,-500.0,0.00032876,2]
[311691749,1705336258894,-500.0,0.00032876,2]
[311691750,1705336258903,-500.0,0.00032876,2]
[311691751,1705336258912,-808.49,0.00032876,2]
[311691752,1705336258921,-500.55787961,0.00032876,2]
[311691753,1705336258931,-638.76,0.00032876,2]
[311691754,1705336258941,-500.0,0.00032876,2]
[311691755,1705336258951,-505.75289709,0.00032876,2]
[311691756,1705336258960,-500.0,0.00032876,2]
[311691757,1705336258970,-500.0,0.00032876,2]
[311691758,1705336258980,-1056.84,0.00032876,2]
[311691759,1705336258990,-766.55,0.00032876,2]
[311691760,1705336258999,-500.0,0.00032876,2]
[311691761,1705336259009,-500.0,0.00032876,2]
[311691762,1705336259019,-1245.64,0.00032876,2]
[311691763,1705336259028,-1685.24,0.00032876,2]
[311691764,1705336259038,-500.0,0.00032876,2]
[311691765,1705336259047,-772.07,0.00032876,2]
[311691766,1705336259056,-1018.85,0.00032876,2]
[311691767,1705336259066,-500.0,0.00032876,2]
[311691768,1705336259075,-505.71404296,0.00032876,2]
[311691769,1705336259085,-500.0,0.00032876,2]
[311691770,1705336259094,-714.06,0.00032876,2]
[311691771,1705336259103,-645.55,0.00032876,2]
[311691772,1705336259112,-747.22,0.00032876,2]
[311691773,1705336259121,-507.30089402,0.00032876,2]
[311691774,1705336259130,-500.0,0.00032876,2]
[311691775,1705336259139,-500.0,0.00032876,2]
[311691776,1705336259149,-500.0,0.00032876,2]
[311691777,1705336259158,-500.0,0.00032876,2]
[311691778,1705336259167,-847.13,0.00032876,2]
[311691779,1705336259176,-500.0,0.00032876,2]
[311691780,1705336259186,-500.0,0.00032876,2]
[311691781,1705336259195,-500.0,0.00032876,2]
[311691782,1705336259204,-500.0,0.00032876,2]
[311691783,1705336259214,-500.0,0.00032876,2]
[311691784,1705336259223,-988.3,0.00032876,2]
[311691785,1705336259232,-500.0,0.00032876,2]
[311691786,1705336259241,-501.54204509,0.00032876,2]
[311691787,1705336259250,-500.0,0.00032876,2]
[311691788,1705336259260,-505.30162051,0.00032876,2]
[311691789,1705336259269,-500.0,0.00032876,2]
[311691790,1705336259278,-1421.12,0.00032876,2]
[311691791,1705336259287,-500.0,0.00032876,2]
[311691792,1705336259296,-500.0,0.00032876,2]
[311691793,1705336259305,-500.0,0.00032876,2]
[311691794,1705336259314,-2008.87,0.00032876,2]
[311691795,1705336259323,-671.6,0.00032876,2]
[311691796,1705336259332,-500.0,0.00032876,2]
[311691797,1705336259342,-500.0,0.00032876,2]
[311691798,1705336259351,-300.0,0.00032876,2]
[311691799,1705336259360,-500.0,0.00032876,2]
[311691800,1705336259369,-500.0,0.00032876,2]
[311691801,1705336259378,-500.0,0.00032876,2]
[311691802,1705336259388,-500.0,0.00032876,2]
[311691803,1705336259397,-500.0,0.00032876,2]
[311691804,1705336259406,-675.95,0.00032876,2]
[311691805,1705336259416,-847.4,0.00032876,2]
[311691806,1705336259425,-500.0,0.00032876,2]
[311691807,1705336259435,-500.0,0.00032876,2]
[311691808,1705336259444,-500.0,0.00032876,7]
[311691809,1705336259453,-561.45,0.00032876,2]
[311691810,1705336259462,-500.0,0.00032876,2]
[311691811,1705336259472,-500.0,0.00032876,2]
[311691812,1705336259481,-500.0,0.00032876,2]
[311691813,1705336259490,-500.0,0.00032876,2]
[311691814,1705336259499,-500.0,0.00032876,2]
[311691815,1705336259509,-500.0,0.00032876,2]
[311691816,1705336259518,-686.33,0.00032876,2]
[311691817,1705336259528,-503.11407256,0.00032876,2]
[311691818,1705336259538,-500.0,0.00032876,2]
[311691819,1705336259547,-500.0,0.00032876,2]
[311691820,1705336259556,-500.0,0.00032876,2]
[311691821,1705336259566,-500.0,0.00032876,2]
[311691822,1705336259575,-775.38,0.00032876,2]
[311691823,1705336259584,-500.0,0.00032876,2]
[311691824,1705336259594,-967.84,0.00032876,2]
[311691825,1705336259603,-705.01,0.00032876,2]
[311691826,1705336259612,-500.0,0.00032876,2]
[311691827,1705336259622,-500.0,0.00032876,2]
[311691828,1705336259631,-500.0,0.00032876,2]
[311691829,1705336259640,-628.32,0.00032876,2]
[311691830,1705336259650,-500.0,0.00032876,2]
[311691831,1705336259660,-568.48,0.00032876,2]
[311691832,1705336259669,-500.0,0.00032876,2]
[311691833,1705336259678,-1232.73,0.00032876,2]
[311691834,1705336259688,-1110.73,0.00032876,2]
[311691835,1705336259697,-857.28,0.00032876,2]
[311691836,1705336259706,-500.0,0.00032876,2]
[311691837,1705336259716,-500.0,0.00032876,2]
[311691838,1705336259725,-529.41995143,0.00032876,2]
[311691839,1705336259734,-500.0,0.00032876,2]
[311691840,1705336259743,-500.0,0.00032876,2]
[311691841,1705336259752,-1713.63,0.00032876,2]
[311691842,1705336259764,-500.0,0.00032876,2]
[311691843,1705336259773,-690.4,0.00032876,2]
[311691844,1705336259783,-500.0,0.00032876,2]
[311691845,1705336259792,-500.0,0.00032876,2]
[311691846,1705336259801,-511.81719337,0.00032876,2]
[311691847,1705336259810,-500.0,0.00032876,2]
[311691848,1705336259820,-611.53,0.00032876,2]
[311691849,1705336259829,-347.96786087,0.00032876,2]
[311691850,1705336259838,-738.65,0.00032876,2]
[311691851,1705336259847,-500.0,0.00032876,2]
[311691852,1705336259857,-853.43,0.00032876,2]
[311691853,1705336259866,-500.0,0.00032876,2]
[311691854,1705336259875,-500.0,0.00032876,2]
[311691855,1705336259884,-500.0,0.00032876,2]
[311691856,1705336259893,-500.0,0.00032876,2]
[311691857,1705336259903,-181.10201097,0.00032876,2]
[311691858,1705336259912,-500.0,0.00032876,2]
[311691859,1705336259921,-278.05460925,0.00032876,2]
[311691860,1705336259931,-500.0,0.00032876,2]
[311691861,1705336259940,-1659.61,0.00032876,2]
[311691862,1705336259949,-1353.34,0.00032876,2]
[311691863,1705336259958,-500.0,0.00032876,2]
[311691864,1705336259967,-926.69,0.00032876,2]
[311691865,1705336259977,-721.81,0.00032876,2]
[311691866,1705336259986,-500.0,0.00032876,2]
[311691867,1705336259995,-1156.41,0.00032876,2]
[311691868,1705336260004,-500.0,0.00032876,2]
[311691869,1705336260014,-500.0,0.00032876,2]
[311691870,1705336260023,-1034.8,0.00032876,2]
[311691871,1705336260032,-500.0,0.00032876,2]
[311691872,1705336260041,-500.0,0.00032876,2]
[311691873,1705336260051,-500.0,0.00032876,2]
[311691874,1705336260060,-2418.03,0.00032876,2]
[311691875,1705336260070,-1992.05,0.00032876,2]
[311691876,1705336260079,-975.07,0.00032876,2]
[311691877,1705336260089,-500.0,0.00032876,2]
[311691878,1705336260098,-510.629307,0.00032876,2]
[311691879,1705336260107,-502.7784598,0.00032876,2]
[311691880,1705336260116,-500.0,0.00032876,2]
[311691881,1705336260125,-1652.74,0.00032876,2]
[311691882,1705336260134,-500.0,0.00032876,2]
[311691883,1705336260143,-511.42263624,0.00032876,2]
[311691884,1705336260152,-201.56843239,0.00032876,2]
[311691885,1705336260161,-1082.51,0.00032876,2]
[311691886,1705336260171,-500.0,0.00032876,2]
[311691887,1705336260180,-500.0,0.00032876,2]
[311691888,1705336260190,-1450.58,0.00032876,2]
[311691889,1705336260199,-500.0,0.00032876,2]
[311691890,1705336260208,-500.0,0.00032876,2]
[311691891,1705336260218,-500.0,0.00032876,2]
[311691892,1705336260228,-881.59,0.00032876,2]
[311691893,1705336260238,-500.0,0.00032876,2]
[311691894,1705336260248,-500.0,0.00032876,2]
[311691895,1705336260258,-500.0,0.00032876,2]
[311691896,1705336260272,-500.0,0.00032876,2]
[311691897,1705336260282,-500.0,0.00032876,2]
[311691898,1705336260292,-500.0,0.00032876,2]
[311691899,1705336260303,-216.92989882,0.00032876,2]
[311691900,1705336260314,-910.34,0.00032876,2]
[311691901,1705336260324,-500.0,0.00032876,2]
[311691902,1705336260335,-4246.26,0.00032876,2]
[311691903,1705336260346,-500.0,0.00032876,2]
[311691904,1705336260356,-500.0,0.00032876,2]
[311691905,1705336260366,-1130.68,0.00032876,2]
[311691906,1705336260377,-500.0,0.00032876,2]
[311691907,1705336260387,-597.24,0.00032876,2]
[311691908,1705336260398,-546.19764875,0.00032876,2]
[311691909,1705336260408,-500.0,0.00032876,2]
[311691910,1705336260418,-500.0,0.00032876,2]
[311691911,1705336260428,-500.0,0.00032876,2]
[311691912,1705336260438,-3667.22,0.00032876,2]
[311691913,1705336260448,-501.3001951,0.00032876,2]
[311691914,1705336260458,-500.0,0.00032876,2]
[311691915,1705336260468,-603.11,0.00032876,2]
[311691916,1705336260478,-500.0,0.00032876,2]
[311691917,1705336260488,-730.06,0.00032876,2]
[311691918,1705336260497,-5637.45,0.00032876,2]
[311691919,1705336260507,-854.2,0.00032876,5]
[311691920,1705336260522,-4058.96,0.00032876,2]
[311691921,1705336260540,-1323.04,0.00032876,2]
[311691922,1705336260563,-696.02,0.00032876,2]
[311691923,1705336260586,-512.46,0.00032876,2]
[311691924,1705336260609,-500.0,0.00032876,2]
[311691925,1705336260631,-502.29953928,0.00032876,2]
[311691926,1705336260655,-540.95,0.00032876,2]
[311691927,1705336260672,-500.0,0.00032876,2]
[311691928,1705336260683,-781.4,0.00032876,2]
[311691929,1705336260695,-1029.98,0.00032876,2]
[311691930,1705336260704,-500.0,0.00032876,2]
[311691931,1705336260714,-1067.63,0.00032876,2]
[311691932,1705336260723,-500.0,0.00032876,2]
[311691933,1705336260733,-713.14,0.00032876,2]
[311691934,1705336260742,-17948.03,0.00032876,2]
[311691935,1705336260752,-7311.79,0.00032876,2]
[311691936,1705336260764,-717.05,0.00032876,5]
[311691937,1705336260773,-500.0,0.00032876,2]
[311691938,1705336260784,-500.0,0.00032876,2]
[311691939,1705336260793,-933.35,0.00032876,2]
[311691940,1705336260803,-728.61,0.00032876,2]
[311691941,1705336260812,-500.0,0.00032876,2]
[311691942,1705336260821,-500.0,0.00032876,2]
[311691943,1705336260830,-569.18,0.00032876,2]
[311691944,1705336260841,-932.3,0.00032876,2]
[311691945,1705336260850,-500.0,0.00032876,2]
[311691946,1705336260859,-500.0,0.00032876,2]
[311691947,1705336260869,-500.0,0.00032876,2]
[311691948,1705336260878,-500.0,0.00032876,2]
[311691949,1705336260887,-4638.06,0.00032876,2]
[311691950,1705336260896,-1077.25,0.00032876,2]
[311691951,1705336260906,-500.0,0.00032876,2]
[311691952,1705336260915,-5660.58,0.00032876,2]
[311691953,1705336260925,-500.62307203,0.00032876,2]
[311691954,1705336260934,-691.91,0.00032876,2]
[311691955,1705336260944,-500.0,0.00032876,2]
[311691956,1705336260953,-1827.12,0.00032876,2]
[311691957,1705336260962,-500.0,0.00032876,2]
[311691958,1705336260972,-500.0,0.00032876,2]
[311691959,1705336260981,-500.0,0.00032876,2]
[311691960,1705336260990,-1452.34,0.00032876,2]
[311691961,1705336260999,-852.55,0.00032876,2]
[311691962,1705336261008,-909.43,0.00032876,2]
[311691963,1705336261019,-500.0,0.00032876,2]
[311691964,1705336261028,-500.0,0.00032876,2]
[311691965,1705336261038,-500.0,0.00032876,2]
[311691966,1705336261047,-504.44979872,0.00032876,2]
[311691967,1705336261056,-500.0,0.00032876,2]
[311691968,1705336261065,-500.0,0.00032876,2]
[311691969,1705336261074,-500.0,0.00032876,2]
[311691970,1705336261083,-181.04731766,0.00032876,2]
[311691971,1705336261092,-500.0,0.00032876,2]
[311691972,1705336261101,-500.0,0.00032876,2]
[311691973,1705336261110,-4608.99,0.00032876,2]
[311691974,1705336261119,-500.0,0.00032876,2]
[311691975,1705336261127,-612.15,0.00032876,2]
[311691976,1705336261137,-500.0,0.00032876,2]
[311691977,1705336261146,-500.0,0.00032876,2]
[311691978,1705336261155,-1036.57,0.00032876,2]
[311691979,1705336261164,-500.0,0.00032876,2]
[311691980,1705336261174,-1075.39,0.00032876,2]
[311691981,1705336261183,-1372.56,0.00032876,2]
[311691982,1705336261193,-615.38,0.00032876,2]
[311691983,1705336261202,-12456.18,0.00032876,2]
[311691984,1705336261211,-558.41,0.00032876,2]
[311691985,1705336261220,-500.0,0.00032876,2]
[311691986,1705336261229,-500.0,0.00032876,2]
[311691987,1705336261238,-1818.75,0.00032876,2]
[311691988,1705336261439,-500.0,0.00032876,2]
[311691989,1705336261449,-1021.56,0.00032876,2]
[311691990,1705336261459,-500.0,0.00032876,2]
[311691991,1705336261468,-12085.1,0.00032876,2]
[311691992,1705336261477,-1009.52,0.00032876,2]
[311691993,1705336261487,-670.13,0.00032876,2]
[311691994,1705336261496,-889.11,0.00032876,2]
[311691995,1705336261505,-500.0,0.00032876,2]
[311691996,1705336261515,-982.41,0.00032876,2]
[311691997,1705336261524,-500.0,0.00032876,2]
[311691998,1705336261534,-500.0,0.00032876,10]
[311691999,1705336261544,-1077.58,0.00032876,2]
[311692000,1705336261553,-500.0,0.00032876,2]
[311692001,1705336261562,-1008.14,0.00032876,2]
[311692002,1705336261572,-7883.37,0.00032876,2]
[311692003,1705336261581,-500.0,0.00032876,2]
[311692004,1705336261591,-500.0,0.00032876,2]
[311692005,1705336261600,-500.0,0.00032876,2]
[311692006,1705336261609,-2687.69,0.00032876,2]
[311692007,1705336261618,-725.21,0.00032876,2]
[311692008,1705336261627,-4819.7,0.00032876,2]
[311692009,1705336261637,-500.0,0.00032876,2]
[311692010,1705336261646,-500.0,0.00032876,2]
[311692011,1705336261656,-824.72,0.00032876,2]
[311692012,1705336261665,-500.0,0.00032876,2]
[311692013,1705336261675,-19040.78,0.00032876,2]
[311692014,1705336261689,-496.29904753,0.00032876,2]
[311692015,1705336261699,-553.5,0.00032876,2]
[311692016,1705336261709,-671.18,0.00032876,2]
[311692017,1705336261718,-500.0,0.00032876,2]
[311692018,1705336261727,-2750.71,0.00032876,2]
[311692019,1705336261737,-501.22605155,0.00032876,2]
[311692020,1705336261746,-835.92,0.00032876,2]
[311692021,1705336261756,-875.33,0.00032876,2]
[311692022,1705336261766,-766.05,0.00032876,2]
[311692023,1705336261775,-500.0,0.00032876,2]
[311692024,1705336261785,-642.16,0.00032876,2]
[311692025,1705336261794,-1822.17,0.00032876,2]
[311692026,1705336261804,-1989.66,0.00032876,2]
[311692027,1705336261813,-981.54,0.00032876,2]
[311692028,1705336261823,-2786.42,0.00032876,2]
[311692029,1705336261833,-395.17837085,0.00032876,2]
[311692030,1705336261843,-3981.89,0.00032876,2]
[311692031,1705336261852,-500.0,0.00032876,2]
[311692032,1705336261861,-500.0,0.00032876,2]
[311692033,1705336261871,-603.04,0.00032876,2]
[311692034,1705336261880,-535.02,0.00032876,2]
[311692035,1705336261889,-500.0,0.00032876,2]
[311692036,1705336261898,-500.0,0.00032876,2]
[311692037,1705336261907,-635.5,0.00032876,2]
[311692038,1705336261916,-500.0,0.00032876,2]
[311692039,1705336261925,-1304.28,0.00032876,2]
[311692040,1705336261934,-514.34231158,0.00032876,2]
[311692041,1705336261944,-2167.3,0.00032876,2]
[311692042,1705336261953,-500.0,0.00032876,2]
[311692043,1705336261962,-1130.33,0.00032876,2]
[311692044,1705336261972,-2210.26,0.00032876,2]
[311692045,1705336261981,-1225.2,0.00032876,2]
[311692046,1705336261990,-161.12835949,0.00032876,2]
[311692047,1705336261999,-1000.0,0.00032876,2]
[311692048,1705336262009,-1090.57,0.00032876,2]
[311692049,1705336262019,-1119.99,0.00032876,2]
[311692050,1705336262029,-500.0,0.00032876,2]
[311692051,1705336262038,-4487.95,0.00032876,2]
[311692052,1705336262047,-242.62306509,0.00032876,2]
[311692053,1705336262057,-1883.96,0.00032876,2]
[311692054,1705336262066,-4085.7,0.00032876,2]
[311692055,1705336262076,-500.0,0.00032876,2]
[311692056,1705336262085,-500.0,0.00032876,2]
[311692057,1705336262095,-514.47,0.00032876,2]
[311692058,1705336262104,-500.0,0.00032876,2]
[311692059,1705336262113,-500.0,0.00032876,2]
[311692060,1705336262123,-1165.22,0.00032876,2]
[311692061,1705336262132,-1475.63,0.00032876,2]
[311692062,1705336262141,-521.71525092,0.00032876,2]
[311692063,1705336262151,-10376.15,0.00032876,2]
[311692064,1705336262160,-500.0,0.00032876,2]
[311692065,1705336262170,-873.69,0.00032876,2]
[311692066,1705336262180,-500.0,0.00032876,2]
[311692067,1705336262189,-500.0,0.00032876,2]
[311692068,1705336262199,-500.0,0.00032876,2]
[311692069,1705336262208,-3401.36,0.00032876,2]
[311692070,1705336262218,-9747.26,0.00032876,2]
[311692071,1705336262227,-602.0,0.00032876,2]
[311692072,1705336262237,-500.0,0.00032876,2]
[311692073,1705336262247,-8933.37,0.00032876,2]
[311692074,1705336262256,-500.0,0.00032876,2]
[311692075,1705336262269,-500.0,0.00032876,2]
[311692076,1705336262279,-500.0,0.00032876,2]
[311692077,1705336262289,-1009.57,0.00032876,2]
[311692078,1705336262298,-509.11120223,0.00032876,2]
[311692079,1705336262307,-620.19,0.00032876,2]
[311692080,1705336262317,-500.0,0.00032876,2]
[311692081,1705336262326,-2118.19,0.00032876,2]
[311692082,1705336262335,-500.0,0.00032876,2]
[311692083,1705336262345,-217.90620788,0.00032876,2]
[311692084,1705336262354,-500.0,0.00032876,2]
[311692085,1705336262363,-500.0,0.00032876,2]
[311692086,1705336262372,-1705.04,0.00032876,2]
[311692087,1705336262382,-1175.44,0.00032876,2]
[311692088,1705336262392,-500.0,0.00032876,2]
[311692089,1705336262402,-500.0,0.00032876,2]
[311692090,1705336262411,-500.0,0.00032876,2]
[311692091,1705336262420,-500.0,0.00032876,2]
[311692092,1705336262430,-500.0,0.00032876,2]
[311692093,1705336262439,-500.0,0.00032876,2]
[311692094,1705336262449,-865.74,0.00032876,2]
[311692095,1705336262459,-527.47,0.00032876,2]
[311692096,1705336262469,-1016.2,0.00032876,2]
[311692097,1705336262479,-504.91586818,0.00032876,2]
[311692098,1705336262488,-500.0,0.00032876,2]
[311692099,1705336262497,-815.02,0.00032876,2]
[311692100,1705336262507,-765.11,0.00032876,2]
[311692101,1705336262518,-2635.82,0.00032876,2]
[311692102,1705336262527,-500.0,0.00032876,2]
[311692103,1705336262537,-38799.65,0.00032876,2]
[311692104,1705336262546,-501.06933275,0.00032876,2]
[311692105,1705336262556,-1677.77,0.00032876,2]